bitfinex/quotes_BTCUSD_20241205
["timestamp","ask_amount","ask_price","bid_price","bid_amount"]
[1733425950597,0.45429144,100590.0,100580.0,0.00145335]
[1733425951502,0.57539144,100590.0,100580.0,0.00145335]
[1733425951723,0.67331066,100590.0,100580.0,0.00145335]
[1733425953535,0.35546544,100590.0,100580.0,0.00145335]
[1733425953774,0.35546544,100590.0,100580.0,0.07104935]
[1733425953999,0.25546544,100590.0,100580.0,0.07104935]
[1733425954694,0.35546544,100590.0,100580.0,0.07104935]
[1733425955137,0.25546544,100590.0,100580.0,0.07104935]
[1733425955592,0.35546544,100590.0,100580.0,0.07104935]
[1733425956074,0.25546544,100590.0,100580.0,0.07104935]
[1733425956262,0.10546544,100590.0,100580.0,0.07104935]
[1733425958722,0.10546544,100590.0,100580.0,0.15054935]
[1733425960227,0.20546544,100590.0,100580.0,0.00145335]
[1733425960447,0.45546544,100590.0,100580.0,0.00145335]
[1733425960680,0.45429144,100590.0,100580.0,0.00145335]
[1733425961564,0.198866,100570.0,100560.0,0.0008659]
[1733425961774,0.63450045,100570.0,100560.0,0.00146051]
[1733425961991,0.64608835,100570.0,100560.0,0.00146051]
[1733425962201,1.18068835,100570.0,100560.0,0.00146051]
[1733425965370,0.64608835,100570.0,100560.0,0.00146051]
[1733425965839,0.348945,100530.0,100520.0,0.000867]
[1733425966070,0.54744973,100530.0,100520.0,0.00146489]
[1733425971252,0.31126263,100530.0,100520.0,0.00146489]
[1733425971482,0.11126263,100530.0,100520.0,0.08105089]
[1733425971691,0.11126263,100530.0,100520.0,0.15915089]
[1733425972352,0.21126263,100530.0,100520.0,0.07956489]
[1733425972555,0.50723414,100530.0,100520.0,0.00146489]
[1733425972979,0.30828914,100530.0,100520.0,0.00146489]
[1733425973600,0.30828914,100530.0,100520.0,0.08105089]
[1733425973824,0.45828914,100530.0,100520.0,0.00146489]
[1733425974527,0.35828914,100530.0,100520.0,0.00146489]
[1733425977398,0.35828914,100530.0,100520.0,0.08105089]
[1733425977617,0.52418441,100530.0,100520.0,0.00146489]
[1733425978916,0.35828914,100530.0,100520.0,0.00146489]
[1733425979137,0.35828914,100530.0,100520.0,0.08105089]
[1733425980448,0.25828914,100530.0,100520.0,0.08105089]
[1733425980670,0.35828914,100530.0,100520.0,0.08105089]
[1733425981318,0.25828914,100530.0,100520.0,0.08105089]
[1733425981539,0.10828914,100530.0,100520.0,0.08105089]
[1733425981813,0.67823671,100530.0,100520.0,0.00146489]
[1733425982025,0.57823671,100530.0,100520.0,0.00146489]
[1733425982458,0.37929171,100530.0,100520.0,0.00146489]
[1733425982697,0.57823671,100530.0,100520.0,0.00146489]
[1733425982924,1.01283671,100530.0,100520.0,0.00146489]
[1733425983148,1.09363671,100530.0,100520.0,0.00146489]
[1733425984447,1.10946287,100530.0,100520.0,0.00146489]
[1733425986634,0.62196287,100530.0,100520.0,0.00146489]
[1733425986859,0.475865,100520.0,100510.0,0.000866]
[1733425987087,0.15,100500.0,100490.0,0.00097972]
[1733425987311,0.44868005,100500.0,100490.0,0.00156499]
[1733425987530,0.45731678,100500.0,100490.0,0.00156499]
[1733425988442,0.45831278,100500.0,100490.0,0.00156499]
[1733425988662,0.35831278,100500.0,100490.0,0.00156499]
[1733425988881,0.25831278,100500.0,100490.0,0.00156499]
[1733425989092,0.35831278,100500.0,100490.0,0.00156499]
[1733425989570,0.45831278,100500.0,100490.0,0.00156499]
[1733425989817,0.35831278,100500.0,100490.0,0.00156499]
[1733425990684,0.43497081,100500.0,100490.0,0.00156499]
[1733425993338,0.63397481,100500.0,100490.0,0.00156499]
[1733425994909,0.43497081,100500.0,100490.0,0.00156499]
[1733425995121,0.45831278,100500.0,100490.0,0.00156499]
[1733425995334,0.45831278,100500.0,100490.0,0.08117399]
[1733425995996,0.35831278,100500.0,100490.0,0.08117399]
[1733425996209,0.45831278,100500.0,100490.0,0.08117399]
[1733425996393,0.35831278,100500.0,100490.0,0.08117399]
[1733425998040,0.45831278,100500.0,100490.0,0.08117399]
[1733425998261,0.25831278,100500.0,100490.0,0.08117399]
[1733425999308,0.10831278,100500.0,100490.0,0.08117399]
[1733426002672,0.10831278,100500.0,100490.0,0.00156499]
[1733426002673,0.67814806,100500.0,100490.0,0.00156499]
[1733426002890,0.47914406,100500.0,100490.0,0.00156499]
[1733426003122,0.37914406,100500.0,100490.0,0.00156499]
[1733426003801,0.55731678,100500.0,100490.0,0.00156499]
[1733426004024,0.35831278,100500.0,100490.0,0.00156499]
[1733426004257,0.35831278,100500.0,100490.0,0.08117399]
[1733426004493,0.35831278,100500.0,100490.0,0.00156499]
[1733426004757,0.35831278,100500.0,100490.0,0.08117399]
[1733426005183,0.44884296,100500.0,100490.0,0.08117399]
[1733426005644,0.35831278,100500.0,100490.0,0.08117399]
[1733426006083,0.35831278,100500.0,100480.0,0.079617]
[1733426006295,0.09967605,100490.0,100480.0,0.08019946]
[1733426006515,0.09967605,100490.0,100480.0,0.15981246]
[1733426006985,0.10825314,100490.0,100480.0,0.15981246]
[1733426007803,0.00857709,100490.0,100480.0,0.28941246]
[1733426007978,0.00857709,100490.0,100480.0,0.3198476]
[1733426008178,0.00857709,100490.0,100480.0,0.28941246]
[1733426008382,0.0017372,100510.0,100500.0,0.079601]
[1733426008579,0.10141325,100510.0,100500.0,0.079601]
[1733426012635,0.11155458,100510.0,100500.0,0.079601]
[1733426012859,0.11155458,100510.0,100490.0,0.239208]
[1733426013086,0.1082956,100500.0,100490.0,0.239208]
[1733426013494,0.1082956,100500.0,100490.0,0.159208]
[1733426028096,5.5e-07,100500.0,100490.0,0.242308]
[1733426028294,7.5e-07,100510.0,100500.0,0.360701]
[1733426028501,7.5e-07,100510.0,100500.0,0.4201419]
[1733426028652,7.5e-07,100510.0,100500.0,0.38970676]
[1733426029078,0.0017366,100540.0,100530.0,0.079578]
[1733426029287,0.10141265,100540.0,100530.0,0.079578]
[1733426030389,0.10141265,100540.0,100530.0,0.08016046]
[1733426032419,0.53857892,100540.0,100530.0,0.00058246]
[1733426032855,0.68857892,100540.0,100530.0,0.00058246]
[1733426033873,2.18857892,100540.0,100530.0,0.00058246]
[1733426034133,2.20312572,100540.0,100530.0,0.00058246]
[1733426034518,2.21190498,100540.0,100530.0,0.00058246]
[1733426035327,1.14650498,100540.0,100530.0,0.00058246]
[1733426035796,2.64650498,100540.0,100530.0,0.00058246]
[1733426037074,2.11190498,100540.0,100530.0,0.00058246]
[1733426039459,0.61190498,100540.0,100530.0,0.00058246]
[1733426039679,0.61190498,100540.0,100500.0,0.079601]
[1733426039680,0.1,100510.0,100500.0,0.079601]
[1733426039890,0.20845432,100510.0,100500.0,0.08018454]
[1733426042370,0.35845432,100510.0,100500.0,0.08018454]
[1733426043554,0.34845477,100510.0,100500.0,0.08018454]
[1733426043993,0.10845432,100510.0,100500.0,0.08018454]
[1733426045104,0.21830025,100510.0,100500.0,0.00058354]
[1733426045319,0.56728525,100510.0,100500.0,0.00058354]
[1733426045572,0.34845477,100510.0,100500.0,0.08018454]
[1733426046660,0.10845432,100510.0,100500.0,0.08018454]
[1733426049543,0.00877827,100510.0,100500.0,0.16838409]
[1733426049756,0.00877827,100510.0,100500.0,0.16937903]
[1733426049994,0.0017366,100540.0,100530.0,0.079578]
[1733426050215,0.10141265,100540.0,100530.0,0.079578]
[1733426050925,0.1914131,100540.0,100530.0,0.079578]
[1733426051135,0.1914131,100540.0,100530.0,0.078814]
[1733426051362,0.10141265,100540.0,100530.0,0.078814]
[1733426052065,0.25141265,100540.0,100530.0,0.078814]
[1733426052276,0.67478321,100540.0,100510.0,0.079588]
[1733426052501,0.3886415,100520.0,100500.0,0.16064434]
[1733426052971,0.1896765,100520.0,100510.0,0.079594]
[1733426055137,0.09967605,100520.0,100510.0,0.079594]
[1733426055858,0.24967605,100520.0,100510.0,0.079594]
[1733426058573,0.25841635,100520.0,100510.0,0.079594]
[1733426059780,0.10841635,100520.0,100510.0,0.079594]
[1733426060006,0.10841635,100520.0,100510.0,0.154594]
[1733426060217,0.10841635,100520.0,100510.0,0.16459355]
[1733426060421,0.0087403,100520.0,100510.0,0.16459355]
[1733426060679,0.0017366,100540.0,100520.0,0.00999955]
[1733426060892,0.09967605,100530.0,100520.0,0.159161]
[1733426063179,0.10140965,100530.0,100520.0,0.159161]
[1733426066275,0.10140965,100530.0,100520.0,0.16916055]
[1733426066442,0.10140965,100530.0,100520.0,0.159161]
[1733426066661,0.10140965,100530.0,100520.0,0.16916055]
[1733426067449,0.10140965,100530.0,100510.0,0.0804548]
[1733426067450,0.11172428,100530.0,100510.0,0.0804548]
[1733426067654,0.20172473,100530.0,100510.0,0.2396348]
[1733426067859,0.20172473,100530.0,100520.0,0.079586]
[1733426068065,0.1914101,100530.0,100520.0,0.079586]
[1733426068272,0.10140965,100530.0,100520.0,0.079586]
[1733426069862,0.10140965,100530.0,100520.0,0.08958555]
[1733426071133,0.10140965,100530.0,100520.0,0.17028555]
[1733426073474,0.10799419,100530.0,100520.0,0.17028555]
[1733426073721,0.10799419,100530.0,100520.0,0.079586]
[1733426074786,0.10628704,100530.0,100520.0,0.079586]
[1733426080832,0.0997025,100530.0,100520.0,0.079586]
[1733426082978,0.0997025,100530.0,100520.0,0.08958555]
[1733426083411,0.0997025,100530.0,100520.0,0.17018555]
[1733426084314,0.0017336,100530.0,100520.0,0.17118032]
[1733426084534,0.0017336,100530.0,100520.0,0.17118026]
[1733426086712,0.0017336,100530.0,100520.0,0.17204706]
[1733426086929,0.0017336,100530.0,100520.0,0.42204706]
[1733426087133,0.0017336,100530.0,100520.0,0.42105235]
[1733426089889,0.0016336,100530.0,100520.0,0.42105235]
[1733426095112,0.0016336,100530.0,100520.0,0.45572515]
[1733426095321,0.0017366,100540.0,100530.0,0.08957755]
[1733426095581,0.10141265,100540.0,100530.0,0.08957755]
[1733426096429,0.10141265,100540.0,100530.0,0.079578]
[1733426096684,0.0758,100530.0,100520.0,0.1600298]
[1733426096930,0.17547605,100530.0,100520.0,0.0804528]
[1733426097162,0.32547605,100530.0,100520.0,0.0008668]
[1733426097389,0.37537605,100530.0,100520.0,0.0008668]
[1733426097619,0.37537605,100530.0,100520.0,0.0804528]
[1733426098009,0.37710965,100530.0,100520.0,0.0804528]
[1733426101311,0.37710965,100530.0,100520.0,0.0008668]
[1733426101929,0.57605465,100530.0,100520.0,0.0008668]
[1733426105157,0.59001852,100530.0,100520.0,0.0008668]
[1733426106900,0.22710965,100530.0,100520.0,0.0804528]
[1733426107296,0.12710965,100530.0,100520.0,0.0804528]
[1733426108424,0.27710965,100530.0,100520.0,0.0804528]
[1733426108843,0.54372528,100530.0,100520.0,0.0008668]
[1733426109279,0.57605465,100530.0,100520.0,0.0008668]
[1733426109953,0.496565,100520.0,100510.0,0.0008668]
[1733426110180,1.13084105,100520.0,100510.0,0.0008668]
[1733426110408,0.422185,100510.0,100500.0,0.00145034]
[1733426110627,0.52186105,100510.0,100500.0,0.00145034]
[1733426111889,0.323524,100490.0,100480.0,0.0008672]
[1733426112171,0.42320005,100490.0,100480.0,0.0008672]
[1733426112848,0.52320005,100490.0,100480.0,0.0008672]
[1733426113067,0.57852714,100490.0,100480.0,0.0008672]
[1733426113490,1.11312714,100490.0,100480.0,0.0008672]
[1733426114231,1.01312714,100490.0,100480.0,0.0008672]
[1733426114496,0.1,100470.0,100460.0,0.05004]
[1733426114742,0.59524005,100470.0,100460.0,0.05004]
[1733426114967,0.77385927,100470.0,100460.0,0.05004]
[1733426115216,0.67385927,100470.0,100460.0,0.05004]
[1733426115680,0.833684,100460.0,100450.0,0.0017356]
[1733426115905,0.96056005,100460.0,100450.0,0.0017356]
[1733426116173,0.299104,100450.0,100440.0,0.0160946]
[1733426116407,0.199143,100430.0,100420.0,0.0008669]
[1733426116654,0.57601905,100430.0,100420.0,0.0008669]
[1733426117424,1.11061905,100430.0,100420.0,0.0008669]
[1733426117878,1.11061905,100430.0,100410.0,0.0008664]
[1733426117879,0.348763,100420.0,100410.0,0.0008664]
[1733426118136,0.44843905,100420.0,100410.0,0.0008664]
[1733426118364,0.54635827,100420.0,100410.0,0.0008664]
[1733426118626,0.24927605,100420.0,100410.0,0.0008664]
[1733426118844,0.44843905,100420.0,100410.0,0.0008664]
[1733426119093,0.44843905,100420.0,100410.0,0.0805394]
[1733426119094,0.14927605,100420.0,100410.0,0.0805394]
[1733426119325,0.16360689,100430.0,100410.0,0.08071771]
[1733426119542,0.08899637,100440.0,100430.0,0.079651]
[1733426120053,0.09789601,100440.0,100430.0,0.079651]
[1733426120271,0.08899637,100440.0,100430.0,0.079651]
[1733426122465,0.0482,100470.0,100460.0,0.079633]
[1733426122689,0.0455,100490.0,100480.0,0.079617]
[1733426122905,0.6554,100510.0,100490.0,0.079605]
[1733426123119,0.5801,100510.0,100500.0,0.079601]
[1733426123332,0.0017336,100530.0,100520.0,0.079586]
[1733426123546,0.01529358,100530.0,100520.0,0.079586]
[1733426123795,0.00232201,100530.0,100520.0,0.079586]
[1733426124229,0.00232201,100530.0,100510.0,0.159175]
[1733426124442,0.30127101,100530.0,100510.0,0.079593]
[1733426124656,0.09967605,100520.0,100510.0,0.079593]
[1733426124891,0.64332205,100520.0,100490.0,0.079605]
[1733426125117,0.09967605,100500.0,100490.0,0.079605]
[1733426125329,0.09967605,100500.0,100480.0,0.159224]
[1733426125541,0.09967605,100490.0,100480.0,0.079611]
[1733426126686,0.09967605,100490.0,100480.0,0.0792992]
[1733426126896,0.1002641,100490.0,100480.0,0.0792992]
[1733426127960,0.1002641,100490.0,100470.0,0.238863]
[1733426128173,0.1002641,100490.0,100470.0,0.159239]
[1733426128387,0.1002641,100490.0,100480.0,0.079617]
[1733426129900,0.199044,100480.0,100450.0,0.05738303]
[1733426130118,0.2993001,100490.0,100450.0,0.05738303]
[1733426130119,0.09967605,100470.0,100450.0,0.05738303]
[1733426130348,0.09967605,100470.0,100460.0,0.159261]
[1733426131002,0.10964366,100470.0,100460.0,0.079628]
[1733426131663,0.09967605,100470.0,100460.0,0.079628]
[1733426133398,0.00232365,100490.0,100480.0,0.079617]
[1733426133611,0.1019997,100490.0,100480.0,0.079617]
[1733426134962,0.1019997,100490.0,100470.0,0.159241]
[1733426135235,0.09967605,100480.0,100470.0,0.079619]
[1733426135439,0.12977942,100480.0,100460.0,0.159255]
[1733426135655,0.12977942,100480.0,100470.0,0.079625]
[1733426136741,0.32882342,100480.0,100460.0,0.159255]
[1733426136953,0.09967605,100470.0,100450.0,0.159271]
[1733426137164,0.09967605,100470.0,100460.0,0.079633]
[1733426137592,0.37143399,100470.0,100450.0,0.159271]
[1733426137807,0.29874005,100470.0,100450.0,0.079635]
[1733426138017,0.29874005,100470.0,100450.0,0.159276]
[1733426138018,0.49781405,100470.0,100450.0,0.159276]
[1733426138240,0.49781405,100470.0,100450.0,0.238913]
[1733426138459,0.49781405,100470.0,100450.0,0.159272]
[1733426138672,0.29874005,100470.0,100450.0,0.238909]
[1733426138893,0.37143599,100470.0,100450.0,0.238909]
[1733426139130,0.37143599,100470.0,100460.0,0.079633]
[1733426139342,0.17237199,100470.0,100460.0,0.079633]
[1733426139773,0.09967605,100470.0,100460.0,0.079633]
[1733426139980,0.09967605,100470.0,100450.0,0.159272]
[1733426140218,0.29874005,100470.0,100450.0,0.238907]
[1733426140869,0.09967605,100470.0,100460.0,0.079633]
[1733426142215,0.09967605,100470.0,100450.0,0.15927]
[1733426142432,0.29875005,100470.0,100450.0,0.159271]
[1733426142655,0.35153919,100470.0,100450.0,0.238908]
[1733426142900,0.55061419,100470.0,100450.0,0.238908]
[1733426143108,0.35153919,100470.0,100450.0,0.238908]
[1733426143331,0.09967605,100460.0,100450.0,0.079641]
[1733426143550,0.17464547,100460.0,100440.0,0.159287]
[1733426143776,0.17464547,100460.0,100450.0,0.079641]
[1733426144243,0.17464547,100460.0,100450.0,0.0805085]
[1733426144686,0.09967605,100460.0,100450.0,0.0805085]
[1733426145380,0.29876005,100460.0,100450.0,0.0008675]
[1733426145600,0.49626005,100460.0,100450.0,0.0008675]
[1733426147408,0.49626005,100460.0,100440.0,0.079649]
[1733426147639,0.09967605,100450.0,100440.0,0.079649]
[1733426148615,0.31847864,100450.0,100430.0,0.07965]
[1733426148808,0.09967605,100440.0,100430.0,0.07965]
[1733426151175,0.09967605,100440.0,100430.0,0.23064566]
[1733426151394,0.09967605,100440.0,100430.0,0.22965]
[1733426151941,0.286261,100520.0,100460.0,0.25]
[1733426152203,0.0017336,100530.0,100510.0,0.159188]
[1733426152423,0.10140965,100530.0,100510.0,0.238782]
[1733426152651,0.10140965,100530.0,100520.0,0.079586]
[1733426152867,0.0017336,100530.0,100520.0,0.08058078]
[1733426153398,0.0017336,100530.0,100520.0,0.51125683]
[1733426153613,0.0017336,100530.0,100520.0,0.51044036]
[1733426155616,6e-07,100530.0,100520.0,0.51044036]
[1733426156091,2e-07,100540.0,100520.0,0.66960536]
[1733426156306,2e-07,100540.0,100530.0,0.43024851]
[1733426156517,2e-07,100540.0,100530.0,0.42925405]
[1733426157002,2e-07,100540.0,100530.0,0.45965191]
[1733426157210,0.0017356,100580.0,100570.0,0.079546]
[1733426157424,0.10141165,100580.0,100570.0,0.079546]
[1733426157844,0.0017356,100580.0,100570.0,0.079546]
[1733426158056,0.0017356,100580.0,100570.0,0.11133351]
[1733426158500,0.00232401,100580.0,100570.0,0.11133351]
[1733426159859,0.00232401,100580.0,100570.0,0.26232775]
[1733426160073,0.00232401,100580.0,100570.0,0.26133351]
[1733426161578,1e-08,100580.0,100570.0,0.36100956]
[1733426161791,0.0008679,100590.0,100580.0,0.17974958]
[1733426162052,0.0008679,100590.0,100580.0,0.18133201]
[1733426162265,0.0008679,100590.0,100580.0,0.26087001]
[1733426162486,0.0008679,100590.0,100580.0,0.25987599]
[1733426162915,9e-07,100590.0,100580.0,0.45955204]
[1733426163573,9e-07,100590.0,100580.0,0.54225204]
[1733426164212,0.001737,100620.0,100610.0,0.15]
[1733426164440,0.001737,100620.0,100610.0,0.23050767]
[1733426164701,0.001737,100620.0,100610.0,0.26206685]
[1733426165550,0.0017352,100630.0,100620.0,0.28255285]
[1733426165763,0.0017352,100630.0,100620.0,0.36205985]
[1733426166199,2e-07,100630.0,100620.0,0.4617359]
[1733426166659,0.0017364,100650.0,100640.0,0.229491]
[1733426167766,0.10141245,100650.0,100640.0,0.079491]
[1733426167989,0.1115537,100650.0,100620.0,0.07968331]
[1733426168219,0.09967605,100640.0,100630.0,0.079494]
[1733426168439,0.09967605,100640.0,100630.0,0.158988]
[1733426169732,0.09967605,100640.0,100630.0,0.079494]
[1733426169988,0.1896765,100640.0,100620.0,0.15918231]
[1733426170412,0.09967605,100640.0,100630.0,0.079499]
[1733426170623,0.1896765,100640.0,100620.0,0.07967931]
[1733426170850,0.3177765,100630.0,100620.0,0.00017831]
[1733426171082,0.57652305,100630.0,100620.0,0.00017831]
[1733426171292,0.67444227,100630.0,100620.0,0.00017831]
[1733426173224,0.77444227,100630.0,100620.0,0.00017831]
[1733426174349,1.30904227,100630.0,100620.0,0.00017831]
[1733426174570,0.09000045,100590.0,100580.0,0.0008658]
[1733426174789,0.3885025,100590.0,100580.0,0.00099528]
[1733426175693,0.09967605,100590.0,100580.0,0.08053328]
[1733426176759,0.09967605,100590.0,100580.0,0.00099528]
[1733426176967,0.29850205,100590.0,100580.0,0.00099528]
[1733426177819,0.3885025,100590.0,100580.0,0.00099528]
[1733426178044,0.48642172,100590.0,100580.0,0.00099528]
[1733426178493,1.12632127,100590.0,100580.0,0.00099528]
[1733426178721,0.28887645,100570.0,100530.0,0.00999955]
[1733426178932,0.09967605,100560.0,100550.0,0.079557]
[1733426179356,0.09967605,100560.0,100540.0,0.159128]
[1733426179572,0.09967605,100560.0,100550.0,0.079562]
[1733426180466,0.09967605,100560.0,100540.0,0.159128]
[1733426180720,0.32744323,100560.0,100540.0,0.159128]
[1733426180969,0.49745805,100560.0,100540.0,0.079563]
[1733426181418,0.69635605,100560.0,100540.0,0.079563]
[1733426181646,0.048,100550.0,100530.0,0.15973341]
[1733426181888,0.09967605,100540.0,100530.0,0.09015996]
[1733426182124,0.66525445,100570.0,100530.0,0.09015996]
[1733426182125,0.1255,100570.0,100550.0,0.079556]
[1733426182364,0.048,100570.0,100560.0,0.079554]
[1733426182839,0.1272316,100590.0,100570.0,0.159081]
[1733426183277,0.09967605,100580.0,100570.0,0.079539]
[1733426183969,0.29853205,100580.0,100560.0,0.079547]
[1733426184193,0.09967605,100580.0,100570.0,0.00058841]
[1733426184657,0.29852205,100580.0,100570.0,0.00058841]
[1733426186581,0.3885225,100580.0,100570.0,0.00058841]
[1733426186821,0.09967605,100580.0,100570.0,0.08013441]
[1733426187049,0.09967605,100580.0,100570.0,0.00058841]
[1733426187288,0.24967605,100580.0,100570.0,0.08013441]
[1733426187534,0.09967605,100580.0,100570.0,0.08013441]
[1733426188511,0.0017316,100590.0,100580.0,0.08953755]
[1733426188723,0.10140765,100590.0,100580.0,0.08953755]
[1733426189397,0.10140765,100590.0,100580.0,0.0905317]
[1733426189398,0.0017316,100590.0,100580.0,0.0905317]
[1733426190083,0.0017316,100590.0,100580.0,0.2405317]
[1733426190330,0.0017316,100590.0,100580.0,0.23953755]
[1733426190789,0.0017316,100590.0,100580.0,0.24040315]
[1733426192096,0.0017316,100590.0,100580.0,0.5214792]
[1733426192308,0.0017316,100590.0,100580.0,0.6214792]
[1733426195904,0.0017316,100590.0,100580.0,0.63395767]
[1733426197816,6e-07,100590.0,100580.0,0.63395767]
[1733426198056,0.0017312,100620.0,100610.0,0.23951355]
[1733426199457,0.0017312,100620.0,100610.0,0.23969265]
[1733426201851,0.0017312,100620.0,100610.0,0.4393687]
[1733426202075,0.0017312,100620.0,100610.0,0.5393687]
[1733426202303,2e-07,100620.0,100610.0,0.6167687]
[1733426202528,2e-07,100620.0,100610.0,0.64648978]
[1733426203176,2e-07,100620.0,100610.0,0.69348978]
[1733426203433,2e-07,100620.0,100610.0,0.74357492]
[1733426203644,2e-07,100620.0,100610.0,0.72848384]
[1733426203870,0.0017364,100650.0,100640.0,0.33949055]
[1733426204091,0.0017364,100650.0,100640.0,0.4391666]
[1733426204566,4e-07,100650.0,100640.0,0.64478768]
[1733426204791,4e-07,100650.0,100640.0,0.67187282]
[1733426205012,0.1420617,100690.0,100680.0,0.079459]
[1733426205226,0.24173775,100690.0,100680.0,0.08945855]
[1733426205716,0.44036675,100690.0,100670.0,0.16892355]
[1733426205937,0.09967605,100680.0,100670.0,0.08946055]
[1733426206167,0.09967605,100680.0,100670.0,0.079461]
[1733426206399,0.09967605,100680.0,100670.0,0.08963965]
[1733426206618,0.1420617,100690.0,100670.0,0.16910265]
[1733426206845,0.24173775,100690.0,100680.0,0.079459]
[1733426207699,0.24173775,100690.0,100670.0,0.16910165]
[1733426207916,0.09967605,100680.0,100670.0,0.08963965]
[1733426210038,0.09967605,100680.0,100670.0,0.1022212]
[1733426210463,0.1420617,100690.0,100680.0,0.079459]
[1733426210755,0.24173775,100690.0,100680.0,0.079459]
[1733426211880,0.198649,100680.0,100670.0,0.0001791]
[1733426212117,0.09967605,100680.0,100670.0,0.0001791]
[1733426212340,0.09967605,100680.0,100670.0,0.08964565]
[1733426212985,0.09967605,100680.0,100670.0,0.0796461]
[1733426213439,0.29832505,100680.0,100670.0,0.0001791]
[1733426213691,0.39336774,100680.0,100670.0,0.0001791]
[1733426213912,0.29832505,100680.0,100670.0,0.0001791]
[1733426214568,0.30005685,100680.0,100670.0,0.0001791]
[1733426215479,0.6214573,100680.0,100670.0,0.0001791]
[1733426216595,0.525201,100660.0,100640.0,0.07949]
[1733426216810,0.09967605,100650.0,100640.0,0.07966523]
[1733426217452,0.09967605,100650.0,100640.0,0.08966478]
[1733426218324,0.09967605,100650.0,100640.0,0.08866478]
[1733426219435,0.09967605,100650.0,100640.0,0.07866523]
[1733426219689,0.29838405,100650.0,100640.0,0.00017523]
[1733426221032,0.4883845,100650.0,100640.0,0.00017523]
[1733426221245,0.6192845,100650.0,100640.0,0.00017523]
[1733426222946,0.5192845,100650.0,100640.0,0.00017523]
[1733426223166,0.71720372,100650.0,100640.0,0.00017523]
[1733426223383,0.6192845,100650.0,100640.0,0.00017523]
[1733426223608,0.52928405,100650.0,100640.0,0.00017523]
[1733426224466,0.5192845,100650.0,100640.0,0.00017523]
[1733426224702,0.198781,100620.0,100600.0,0.079518]
[1733426224980,0.09967605,100610.0,100600.0,0.08951755]
[1733426225206,0.09967605,100610.0,100600.0,0.08958953]
[1733426225425,0.10637677,100610.0,100600.0,0.08958953]
[1733426225853,0.10637677,100610.0,100600.0,0.01007153]
[1733426226293,0.10637677,100610.0,100600.0,0.08959353]
[1733426228422,0.14293958,100610.0,100600.0,7.198e-05]
[1733426228672,0.34172658,100610.0,100600.0,7.198e-05]
[1733426228905,0.49172658,100610.0,100600.0,7.198e-05]
[1733426229179,0.80742703,100610.0,100600.0,7.198e-05]
[1733426229832,0.71742658,100610.0,100600.0,7.198e-05]
[1733426230058,0.15307677,100610.0,100600.0,0.08959353]
[1733426230297,0.10637677,100610.0,100600.0,0.08959353]
[1733426232364,0.00670072,100610.0,100600.0,0.24058747]
[1733426232586,0.00670072,100610.0,100600.0,0.31499353]
[1733426232800,0.0476,100630.0,100620.0,0.08950655]
[1733426233023,0.14727605,100630.0,100620.0,0.08950655]
[1733426234304,0.14727605,100630.0,100600.0,0.08958853]
[1733426234518,0.38165205,100620.0,100600.0,0.24862553]
[1733426234736,0.58042905,100620.0,100600.0,0.24862553]
[1733426235365,0.18287605,100620.0,100600.0,0.16910653]
[1733426235580,0.18287605,100620.0,100610.0,0.079514]
[1733426235795,0.09967605,100620.0,100610.0,0.08951355]
[1733426236485,0.0476,100630.0,100620.0,0.08950655]
[1733426236700,0.09967605,100630.0,100620.0,0.08949955]
[1733426240742,0.6967676,100650.0,100630.0,0.08949355]
[1733426240959,0.09967605,100640.0,100630.0,0.16898855]
[1733426241819,0.09967605,100640.0,100620.0,0.16900155]
[1733426242033,0.43718441,100640.0,100600.0,0.079516]
[1733426242248,0.63592841,100640.0,100610.0,0.159018]
[1733426242452,0.198757,100630.0,100610.0,0.079508]
[1733426242669,0.09967605,100620.0,100610.0,0.159019]
[1733426243527,0.63625036,100640.0,100620.0,0.159004]
[1733426243528,0.329,100640.0,100620.0,0.159004]
[1733426243744,0.25359941,100640.0,100630.0,0.079499]
[1733426243982,0.32867605,100640.0,100630.0,0.079499]
[1733426244890,0.09967605,100640.0,100630.0,0.079499]
[1733426245119,0.0493306,100650.0,100630.0,0.158998]
[1733426245338,0.14900665,100650.0,100640.0,0.079491]
[1733426245984,0.14900665,100650.0,100630.0,0.079494]
[1733426246201,0.49716505,100640.0,100610.0,0.079507]
[1733426246416,0.49716505,100640.0,100610.0,0.159017]
[1733426246630,0.57566005,100640.0,100610.0,0.15919095]
[1733426246914,0.39751,100630.0,100610.0,0.07968095]
[1733426247160,0.246367,100620.0,100610.0,0.00017395]
[1733426247392,0.34604305,100620.0,100610.0,0.00017395]
[1733426248790,0.52454305,100620.0,100610.0,0.00017395]
[1733426249492,0.67454305,100620.0,100610.0,0.00017395]
[1733426249721,0.77246227,100620.0,100610.0,0.00017395]
[1733426249947,0.67246227,100620.0,100610.0,0.00017395]
[1733426250171,0.77246227,100620.0,100610.0,0.00017395]
[1733426252076,0.77246227,100620.0,100610.0,0.06974895]
[1733426252077,0.57454305,100620.0,100610.0,0.06974895]
[1733426252315,0.47577605,100620.0,100610.0,0.00017395]
[1733426252551,0.67454305,100620.0,100610.0,0.00017395]
[1733426254337,0.37577605,100620.0,100610.0,0.00017395]
[1733426254611,0.57454305,100620.0,100610.0,0.06974895]
[1733426255041,0.67246227,100620.0,100610.0,0.00017395]
[1733426255710,0.67246227,100620.0,100610.0,0.06974895]
[1733426255950,0.53373448,100620.0,100610.0,0.00017395]
[1733426256434,0.01217744,100630.0,100610.0,0.06974895]
[1733426256651,0.44843105,100630.0,100610.0,0.13931995]
[1733426256874,0.44843105,100630.0,100620.0,0.069568]
[1733426257338,0.44843105,100630.0,100610.0,0.13931695]
[1733426257552,0.44843105,100630.0,100610.0,0.20888795]
[1733426257764,0.09967605,100620.0,100610.0,0.00017395]
[1733426258228,0.09967605,100620.0,100610.0,0.06974895]
[1733426258482,0.15,100630.0,100610.0,0.06974895]
[1733426258706,0.24967605,100630.0,100620.0,0.069568]
[1733426258931,0.09967605,100630.0,100620.0,0.069568]
[1733426260045,0.0017308,100640.0,100630.0,0.069561]
[1733426260261,0.0017308,100640.0,100630.0,0.07055464]
[1733426260926,0.0017308,100640.0,100630.0,0.069561]
[1733426263818,0.0017308,100640.0,100630.0,0.07055459]
[1733426264940,0.0017308,100640.0,100630.0,0.46953064]
[1733426265159,0.0017308,100640.0,100630.0,0.46853705]
[1733426266242,8e-07,100640.0,100630.0,0.46853705]
[1733426266917,8e-07,100640.0,100630.0,0.57551047]
[1733426268064,4e-07,100650.0,100640.0,0.319554]
[1733426268281,4e-07,100650.0,100640.0,0.41923005]
[1733426270131,4e-07,100650.0,100640.0,0.31923005]
[1733426270374,4e-07,100650.0,100640.0,0.219554]
[1733426270853,4e-07,100650.0,100640.0,0.069554]
[1733426271567,4e-07,100650.0,100640.0,0.07054746]
[1733426272467,4e-07,100650.0,100640.0,0.27022351]
[1733426272687,4e-07,100650.0,100640.0,0.41923005]